[Event "Titled Tuesday Blitz July 25 Late 2023"]
[White "Nakamura, Hikaru"]
[Black "Vachier-Lagrave, Maxime"]
[WhiteFideId "2016192"]
[BlackFideId "623539"]
[WhiteElo "3265"]
[BlackElo "3191"]
[Result "1-0"]
[Round "11"]
[TimeControl "180+2"]
[Date "2023.07.25"]
[WhiteClock "0:00:21"]
[BlackClock "0:00:02"]
[Board "1"]

1. a3 {[%clk 0:03:00]}  g6 {[%clk 0:02:59]} 2. e4 {[%clk 0:03:00]}  Bg7 {[%clk 0:02:59]} 3. d4 {[%clk 0:02:59]}  d6 {[%clk 0:02:59]} 4. Nf3 {[%clk 0:02:57]}  Nf6 {[%clk 0:02:59]} 5. Nbd2 {[%clk 0:02:52]}  O-O {[%clk 0:02:58]} 6. Bd3 {[%clk 0:02:52]}  Nc6 {[%clk 0:02:57]} 7. d5 {[%clk 0:02:50]}  Nb8 {[%clk 0:02:54]} 8. O-O {[%clk 0:02:50]}  Nbd7 {[%clk 0:02:53]} 9. Re1 {[%clk 0:02:49]}  Nc5 {[%clk 0:02:52]} 10. Bf1 {[%clk 0:02:49]}  a5 {[%clk 0:02:53]} 11. Rb1 {[%clk 0:02:42]}  c6 {[%clk 0:02:52]} 12. dxc6 {[%clk 0:02:39]}  bxc6 {[%clk 0:02:52]} 13. b3 {[%clk 0:02:39]}  e5 {[%clk 0:02:43]} 14. a4 {[%clk 0:02:35]}  Qc7 {[%clk 0:02:37]} 15. Ba3 {[%clk 0:02:35]}  Rd8 {[%clk 0:02:06]} 16. Bxc5 {[%clk 0:02:35]}  dxc5 {[%clk 0:02:06]} 17. Qe2 {[%clk 0:02:36]}  Nd7 {[%clk 0:01:58]} 18. Qe3 {[%clk 0:02:33]}  Nf8 {[%clk 0:01:44]} 19. Qxc5 {[%clk 0:02:28]}  Ne6 {[%clk 0:01:44]} 20. Qc3 {[%clk 0:02:26]}  c5 {[%clk 0:01:40]} 21. Bc4 {[%clk 0:02:22]}  Nf4 {[%clk 0:01:26]} 22. g3 {[%clk 0:02:07]}  Bb7 {[%clk 0:01:02]} 23. Ng5 {[%clk 0:01:41]}  Rd7 {[%clk 0:01:02]} 24. gxf4 {[%clk 0:01:23]}  exf4 {[%clk 0:01:02]} 25. e5 {[%clk 0:01:23]}  h6 {[%clk 0:00:59]} 26. Nge4 {[%clk 0:01:18]}  Rd4 {[%clk 0:00:13]} 27. Nxc5 {[%clk 0:00:46]}  Rad8 {[%clk 0:00:08]} 28. Nxb7 {[%clk 0:00:45]}  Qxb7 {[%clk 0:00:08]} 29. Nf3 {[%clk 0:00:44]}  Rd3 {[%clk 0:00:06]} 30. Bxd3 {[%clk 0:00:21]}  Qxf3 {[%clk 0:00:06]} 31. Qc4 {[%clk 0:00:21]}  h5 {[%clk 0:00:02]} 32. Qe4 {[%clk 0:00:21]} 1-0


[Site "https://www.chess.com"]

[Event "Titled Tuesday Blitz July 25 Late 2023"]
[White "Dardha, Daniel"]
[Black "Nihal Sarin"]
[WhiteFideId "240990"]
[BlackFideId "25092340"]
[WhiteElo "2915"]
[BlackElo "3081"]
[Result "1-0"]
[Round "11"]
[TimeControl "180+2"]
[Date "2023.07.25"]
[WhiteClock "0:00:36"]
[BlackClock "0:02:56"]
[Board "2"]

1. d4 {[%clk 0:03:00]}  d5 {[%clk 0:03:00]} 2. c4 {[%clk 0:02:59]}  e6 {[%clk 0:03:00]} 3. Nf3 {[%clk 0:02:57]}  Nf6 {[%clk 0:03:01]} 4. Nc3 {[%clk 0:02:57]}  Bb4 {[%clk 0:03:01]} 5. Qa4+ {[%clk 0:02:53]}  Nc6 {[%clk 0:03:01]} 6. a3 {[%clk 0:02:53]}  Bxc3+ {[%clk 0:03:00]} 7. bxc3 {[%clk 0:02:54]}  O-O {[%clk 0:03:00]} 8. e3 {[%clk 0:02:47]}  Ne4 {[%clk 0:03:00]} 9. Bd3 {[%clk 0:02:44]}  Bd7 {[%clk 0:03:00]} 10. Qc2 {[%clk 0:02:41]}  Na5 {[%clk 0:03:00]} 11. cxd5 {[%clk 0:02:39]}  exd5 {[%clk 0:03:01]} 12. c4 {[%clk 0:02:27]}  c6 {[%clk 0:03:01]} 13. O-O {[%clk 0:02:20]}  Re8 {[%clk 0:03:02]} 14. a4 {[%clk 0:02:12]}  Nxc4 {[%clk 0:03:01]} 15. Bxc4 {[%clk 0:02:11]}  dxc4 {[%clk 0:03:02]} 16. Qxc4 {[%clk 0:02:10]}  Be6 {[%clk 0:03:03]} 17. Qc2 {[%clk 0:02:06]}  Bd5 {[%clk 0:03:03]} 18. Rb1 {[%clk 0:02:06]}  b6 {[%clk 0:03:02]} 19. Ne5 {[%clk 0:02:04]}  f6 {[%clk 0:03:03]} 20. Nd3 {[%clk 0:02:02]}  c5 {[%clk 0:03:04]} 21. dxc5 {[%clk 0:02:00]}  Rc8 {[%clk 0:03:03]} 22. Ba3 {[%clk 0:01:56]}  Qd7 {[%clk 0:03:04]} 23. Nf4 {[%clk 0:01:52]}  Ba8 {[%clk 0:03:04]} 24. Qb3+ {[%clk 0:01:39]}  Kh8 {[%clk 0:03:04]} 25. cxb6 {[%clk 0:01:39]}  Nd2 {[%clk 0:03:02]} 26. Rbd1 {[%clk 0:01:32]}  Qb7 {[%clk 0:03:02]} 27. Rxd2 {[%clk 0:01:30]}  g5 {[%clk 0:02:59]} 28. Nd5 {[%clk 0:01:28]}  Rcd8 {[%clk 0:02:59]} 29. Rfd1 {[%clk 0:01:24]}  Re5 {[%clk 0:02:59]} 30. Bb2 {[%clk 0:01:00]}  Rdxd5 {[%clk 0:03:00]} 31. Bxe5 {[%clk 0:00:43]}  Rd6 {[%clk 0:02:56]} 32. f3 {[%clk 0:00:38]}  Rxb6 {[%clk 0:02:57]} 33. Rd8+ {[%clk 0:00:36]}  Kg7 {[%clk 0:02:56]} 34. R8d7+ {[%clk 0:00:36]} 1-0


[Site "https://www.chess.com"]

[Event "Titled Tuesday Blitz July 25 Late 2023"]
[White "Paravyan, David"]
[Black "Fedoseev, Vladimir"]
[WhiteFideId "4194985"]
[BlackFideId "24130737"]
[WhiteElo "3013"]
[BlackElo "3075"]
[Result "0-1"]
[Round "11"]
[TimeControl "180+2"]
[Date "2023.07.25"]
[WhiteClock "0:00:50"]
[BlackClock "0:00:57"]
[Board "3"]

1. e4 {[%clk 0:03:00]}  g6 {[%clk 0:03:00]} 2. d4 {[%clk 0:03:00]}  Bg7 {[%clk 0:03:00]} 3. Nf3 {[%clk 0:03:01]}  d6 {[%clk 0:03:00]} 4. Bd3 {[%clk 0:03:02]}  Nc6 {[%clk 0:02:58]} 5. O-O {[%clk 0:03:02]}  Bxd4 {[%clk 0:02:49]} 6. Nxd4 {[%clk 0:03:01]}  Nxd4 {[%clk 0:02:49]} 7. Re1 {[%clk 0:03:02]}  e5 {[%clk 0:02:47]} 8. h3 {[%clk 0:02:59]}  Qe7 {[%clk 0:02:41]} 9. Nc3 {[%clk 0:02:59]}  c6 {[%clk 0:02:38]} 10. Be3 {[%clk 0:02:59]}  Ne6 {[%clk 0:02:37]} 11. Qd2 {[%clk 0:02:58]}  Nf6 {[%clk 0:02:36]} 12. Bh6 {[%clk 0:02:56]}  Bd7 {[%clk 0:02:30]} 13. a4 {[%clk 0:02:56]}  Rg8 {[%clk 0:02:23]} 14. Be3 {[%clk 0:02:55]}  g5 {[%clk 0:02:23]} 15. f3 {[%clk 0:02:55]}  h5 {[%clk 0:02:19]} 16. a5 {[%clk 0:02:55]}  g4 {[%clk 0:02:17]} 17. fxg4 {[%clk 0:02:54]}  hxg4 {[%clk 0:02:17]} 18. h4 {[%clk 0:02:47]}  Nh5 {[%clk 0:02:17]} 19. Bc4 {[%clk 0:02:41]}  Nef4 {[%clk 0:02:11]} 20. Rad1 {[%clk 0:02:27]}  Rg6 {[%clk 0:02:11]} 21. Ne2 {[%clk 0:02:05]}  Qxh4 {[%clk 0:01:49]} 22. Bxf4 {[%clk 0:01:57]}  exf4 {[%clk 0:01:48]} 23. Nxf4 {[%clk 0:01:58]}  Nxf4 {[%clk 0:01:19]} 24. Qxf4 {[%clk 0:01:59]}  Rf6 {[%clk 0:01:19]} 25. Qh2 {[%clk 0:01:50]}  Qf2+ {[%clk 0:00:57]} 26. Kh1 {[%clk 0:01:49]}  O-O-O {[%clk 0:00:58]} 27. Rf1 {[%clk 0:01:00]}  Qxc2 {[%clk 0:00:58]} 28. Rxf6 {[%clk 0:01:00]}  Qxd1+ {[%clk 0:00:57]} 29. Rf1 {[%clk 0:01:01]}  Qd4 {[%clk 0:00:58]} 30. Bxf7 {[%clk 0:00:55]}  Rh8 {[%clk 0:00:57]} 31. Bh5 {[%clk 0:00:50]}  Qe5 {[%clk 0:00:57]} 0-1


[Site "https://www.chess.com"]

[Event "Titled Tuesday Blitz July 25 Late 2023"]
[White "Kamsky, Gata"]
[Black "Duda, Jan-Krzysztof"]
[WhiteFideId "2000024"]
[BlackFideId "1170546"]
[WhiteElo "2964"]
[BlackElo "3047"]
[Result "1/2-1/2"]
[Round "11"]
[TimeControl "180+2"]
[Date "2023.07.25"]
[WhiteClock "0:00:18"]
[BlackClock "0:00:51"]
[Board "5"]

1. e4 {[%clk 0:03:00]}  c5 {[%clk 0:02:58]} 2. Nf3 {[%clk 0:02:55]}  d6 {[%clk 0:02:58]} 3. d4 {[%clk 0:02:53]}  cxd4 {[%clk 0:02:59]} 4. Nxd4 {[%clk 0:02:53]}  Nf6 {[%clk 0:02:59]} 5. Nc3 {[%clk 0:02:54]}  a6 {[%clk 0:03:00]} 6. a4 {[%clk 0:02:54]}  g6 {[%clk 0:02:55]} 7. a5 {[%clk 0:02:53]}  Bg7 {[%clk 0:02:56]} 8. Be2 {[%clk 0:02:54]}  O-O {[%clk 0:02:55]} 9. O-O {[%clk 0:02:54]}  Nc6 {[%clk 0:02:56]} 10. Nxc6 {[%clk 0:02:28]}  bxc6 {[%clk 0:02:57]} 11. Be3 {[%clk 0:02:24]}  Rb8 {[%clk 0:02:50]} 12. Bb6 {[%clk 0:02:24]}  Qe8 {[%clk 0:02:41]} 13. Bd3 {[%clk 0:02:20]}  Nd7 {[%clk 0:02:39]} 14. Na4 {[%clk 0:02:20]}  c5 {[%clk 0:02:40]} 15. Qe2 {[%clk 0:02:18]}  Ra8 {[%clk 0:02:39]} 16. Bc4 {[%clk 0:02:09]}  Ne5 {[%clk 0:02:30]} 17. Bd5 {[%clk 0:02:05]}  Rb8 {[%clk 0:02:31]} 18. f4 {[%clk 0:02:05]}  Nc6 {[%clk 0:02:22]} 19. c3 {[%clk 0:02:03]}  Bd7 {[%clk 0:02:15]} 20. b3 {[%clk 0:01:54]}  e6 {[%clk 0:02:14]} 21. Bc4 {[%clk 0:01:53]}  Ne7 {[%clk 0:02:14]} 22. Bc7 {[%clk 0:01:36]}  Bxa4 {[%clk 0:02:13]} 23. Rxa4 {[%clk 0:01:35]}  Bxc3 {[%clk 0:02:13]} 24. Bxd6 {[%clk 0:01:32]}  Bd4+ {[%clk 0:02:10]} 25. Kh1 {[%clk 0:01:32]}  Rb7 {[%clk 0:02:08]} 26. Ra3 {[%clk 0:01:22]}  Qc6 {[%clk 0:02:07]} 27. Bxe7 {[%clk 0:01:21]}  Rxe7 {[%clk 0:02:08]} 28. Bxa6 {[%clk 0:01:20]}  Ra7 {[%clk 0:01:48]} 29. Bc4 {[%clk 0:01:19]}  Kg7 {[%clk 0:01:48]} 30. a6 {[%clk 0:01:18]}  h6 {[%clk 0:01:41]} 31. Ra2 {[%clk 0:01:17]}  Rb8 {[%clk 0:01:40]} 32. Qf3 {[%clk 0:01:15]}  Rb6 {[%clk 0:01:38]} 33. Qd3 {[%clk 0:01:12]}  Qc7 {[%clk 0:01:32]} 34. f5 {[%clk 0:01:11]}  exf5 {[%clk 0:01:30]} 35. exf5 {[%clk 0:01:11]}  g5 {[%clk 0:01:31]} 36. Re2 {[%clk 0:01:07]}  Rf6 {[%clk 0:01:31]} 37. Qf3 {[%clk 0:01:06]}  Qc8 {[%clk 0:01:27]} 38. g3 {[%clk 0:01:02]}  Raxa6 {[%clk 0:01:21]} 39. Bxa6 {[%clk 0:01:02]}  Qxa6 {[%clk 0:01:21]} 40. Re7 {[%clk 0:00:35]}  Qa2 {[%clk 0:01:17]} 41. h4 {[%clk 0:00:28]}  Rb6 {[%clk 0:00:58]} 42. Qd5 {[%clk 0:00:26]}  Rf6 {[%clk 0:00:53]} 43. Qf3 {[%clk 0:00:26]}  Rb6 {[%clk 0:00:53]} 44. Qd5 {[%clk 0:00:18]}  Rf6 {[%clk 0:00:51]} 45. Qf3 {[%clk 0:00:18]} 1/2-1/2


[Site "https://www.chess.com"]

[Event "Titled Tuesday Blitz July 25 Late 2023"]
[White "Leitao, Rafael"]
[Black "Pranav, V"]
[WhiteFideId "2101246"]
[BlackFideId "25060783"]
[WhiteElo "2817"]
[BlackElo "3020"]
[Result "0-1"]
[Round "11"]
[TimeControl "180+2"]
[Date "2023.07.25"]
[WhiteClock "0:00:00"]
[BlackClock "0:00:01"]
[Board "10"]

1. c4 {[%clk 0:03:00]}  c5 {[%clk 0:02:59]} 2. g3 {[%clk 0:03:00]}  Nc6 {[%clk 0:02:59]} 3. Bg2 {[%clk 0:02:59]}  g6 {[%clk 0:03:00]} 4. Nc3 {[%clk 0:02:59]}  Bg7 {[%clk 0:03:00]} 5. Nf3 {[%clk 0:03:00]}  Nh6 {[%clk 0:03:01]} 6. d4 {[%clk 0:02:59]}  cxd4 {[%clk 0:03:00]} 7. Bxh6 {[%clk 0:02:59]}  Bxh6 {[%clk 0:03:00]} 8. Nxd4 {[%clk 0:03:00]}  O-O {[%clk 0:03:00]} 9. O-O {[%clk 0:02:56]}  Bg7 {[%clk 0:02:59]} 10. e3 {[%clk 0:02:53]}  a6 {[%clk 0:02:55]} 11. Qd2 {[%clk 0:02:51]}  Ne5 {[%clk 0:02:52]} 12. b3 {[%clk 0:02:48]}  d6 {[%clk 0:02:52]} 13. Rac1 {[%clk 0:02:45]}  e6 {[%clk 0:02:47]} 14. Rfd1 {[%clk 0:02:43]}  Qc7 {[%clk 0:02:42]} 15. h3 {[%clk 0:02:39]}  Rd8 {[%clk 0:02:35]} 16. Nde2 {[%clk 0:02:31]}  Bf8 {[%clk 0:02:17]} 17. Ne4 {[%clk 0:02:22]}  Be7 {[%clk 0:02:10]} 18. f4 {[%clk 0:01:49]}  Nd7 {[%clk 0:01:57]} 19. Qb2 {[%clk 0:01:36]}  Rb8 {[%clk 0:01:53]} 20. Kh2 {[%clk 0:01:30]}  b6 {[%clk 0:01:50]} 21. h4 {[%clk 0:01:22]}  Bb7 {[%clk 0:01:49]} 22. h5 {[%clk 0:01:22]}  f5 {[%clk 0:01:29]} 23. h6 {[%clk 0:01:09]}  Bf8 {[%clk 0:01:12]} 24. Ng5 {[%clk 0:00:52]}  Re8 {[%clk 0:01:11]} 25. Nd4 {[%clk 0:00:49]}  Bxg2 {[%clk 0:00:37]} 26. Qxg2 {[%clk 0:00:47]}  Nf6 {[%clk 0:00:36]} 27. Ndxe6 {[%clk 0:00:42]}  Qe7 {[%clk 0:00:32]} 28. Kg1 {[%clk 0:00:37]}  Bxh6 {[%clk 0:00:32]} 29. Re1 {[%clk 0:00:33]}  Qd7 {[%clk 0:00:29]} 30. Qh1 {[%clk 0:00:18]}  Bxg5 {[%clk 0:00:20]} 31. Nxg5 {[%clk 0:00:18]}  Kg7 {[%clk 0:00:20]} 32. e4 {[%clk 0:00:16]}  h6 {[%clk 0:00:19]} 33. exf5 {[%clk 0:00:12]}  hxg5 {[%clk 0:00:09]} 34. fxg5 {[%clk 0:00:12]}  Nh5 {[%clk 0:00:10]} 35. f6+ {[%clk 0:00:12]}  Kh7 {[%clk 0:00:09]} 36. Qd5 {[%clk 0:00:10]}  Kh8 {[%clk 0:00:05]} 37. Kf2 {[%clk 0:00:05]}  Qh3 {[%clk 0:00:03]} 38. Qxd6 {[%clk 0:00:04]}  Rbd8 {[%clk 0:00:02]} 39. Qc7 {[%clk 0:00:03]}  Rd2+ {[%clk 0:00:01]} 40. Kf3 {[%clk 0:00:00]}  Qf5+ {[%clk 0:00:01]} 0-1


[Site "https://www.chess.com"]

[Event "Titled Tuesday Blitz July 25 Late 2023"]
[White "Erigaisi Arjun"]
[Black "Matinian, Nikita"]
[WhiteFideId "35009192"]
[BlackFideId "24129100"]
[WhiteElo "3073"]
[BlackElo "2741"]
[Result "1-0"]
[Round "11"]
[TimeControl "180+2"]
[Date "2023.07.25"]
[WhiteClock "0:01:14"]
[BlackClock "0:00:00"]
[Board "12"]

1. b3 {[%clk 0:03:00]}  Nf6 {[%clk 0:02:59]} 2. Bb2 {[%clk 0:03:01]}  g6 {[%clk 0:03:00]} 3. g3 {[%clk 0:03:01]}  Bg7 {[%clk 0:03:00]} 4. Bg2 {[%clk 0:03:02]}  c5 {[%clk 0:02:59]} 5. c4 {[%clk 0:03:02]}  Nc6 {[%clk 0:03:00]} 6. Nf3 {[%clk 0:03:03]}  d6 {[%clk 0:02:58]} 7. d4 {[%clk 0:03:02]}  cxd4 {[%clk 0:02:58]} 8. Nxd4 {[%clk 0:03:03]}  Bd7 {[%clk 0:02:58]} 9. O-O {[%clk 0:03:02]}  Nxd4 {[%clk 0:02:58]} 10. Qxd4 {[%clk 0:03:01]}  Bc6 {[%clk 0:02:59]} 11. Nc3 {[%clk 0:02:59]}  Bxg2 {[%clk 0:02:49]} 12. Kxg2 {[%clk 0:03:00]}  h5 {[%clk 0:02:45]} 13. h4 {[%clk 0:02:55]}  a6 {[%clk 0:02:30]} 14. Nd5 {[%clk 0:02:53]}  O-O {[%clk 0:02:25]} 15. a4 {[%clk 0:02:46]}  Rc8 {[%clk 0:02:23]} 16. a5 {[%clk 0:02:42]}  Rc6 {[%clk 0:02:15]} 17. Rfd1 {[%clk 0:02:38]}  Re8 {[%clk 0:02:08]} 18. e4 {[%clk 0:02:36]}  Qc8 {[%clk 0:01:46]} 19. Rd3 {[%clk 0:02:31]}  Qg4 {[%clk 0:01:36]} 20. Re1 {[%clk 0:02:28]}  Qc8 {[%clk 0:01:17]} 21. Rf3 {[%clk 0:02:26]}  Qd8 {[%clk 0:01:15]} 22. b4 {[%clk 0:02:13]}  Qc8 {[%clk 0:00:55]} 23. Rc1 {[%clk 0:01:55]}  Qd8 {[%clk 0:00:55]} 24. Rc2 {[%clk 0:01:36]}  Rc8 {[%clk 0:00:50]} 25. e5 {[%clk 0:01:31]}  Nxd5 {[%clk 0:00:45]} 26. Qxd5 {[%clk 0:01:30]}  Rf8 {[%clk 0:00:22]} 27. Qxb7 {[%clk 0:01:30]}  dxe5 {[%clk 0:00:20]} 28. c5 {[%clk 0:01:25]}  Rb8 {[%clk 0:00:17]} 29. Qe4 {[%clk 0:01:24]}  f5 {[%clk 0:00:13]} 30. Qc4+ {[%clk 0:01:24]}  Kh7 {[%clk 0:00:13]} 31. c6 {[%clk 0:01:25]}  Qc7 {[%clk 0:00:14]} 32. Rd3 {[%clk 0:01:24]}  Rfd8 {[%clk 0:00:09]} 33. Rxd8 {[%clk 0:01:23]}  Rxd8 {[%clk 0:00:10]} 34. Qxa6 {[%clk 0:01:23]}  f4 {[%clk 0:00:09]} 35. Qb7 {[%clk 0:01:20]}  f3+ {[%clk 0:00:08]} 36. Kxf3 {[%clk 0:01:19]}  Qd6 {[%clk 0:00:08]} 37. c7 {[%clk 0:01:17]}  Qd1+ {[%clk 0:00:08]} 38. Kg2 {[%clk 0:01:17]}  Rd2 {[%clk 0:00:02]} 39. Rxd2 {[%clk 0:01:16]}  Qxd2 {[%clk 0:00:00]} 40. c8=Q {[%clk 0:01:14]} 1-0


[Site "https://www.chess.com"]

[Event "Titled Tuesday Blitz July 25 Late 2023"]
[White "Kollars, Dmitrij"]
[Black "Jaracz, Pawel"]
[WhiteFideId "12909572"]
[BlackFideId "1102222"]
[WhiteElo "2984"]
[BlackElo "2724"]
[Result "0-1"]
[Round "11"]
[TimeControl "180+2"]
[Date "2023.07.25"]
[WhiteClock "0:01:32"]
[BlackClock "0:00:03"]
[Board "14"]

1. d4 {[%clk 0:03:00]}  Nf6 {[%clk 0:02:56]} 2. Nf3 {[%clk 0:03:00]}  e6 {[%clk 0:02:55]} 3. Bf4 {[%clk 0:02:59]}  c5 {[%clk 0:02:55]} 4. e3 {[%clk 0:02:58]}  d5 {[%clk 0:02:49]} 5. c3 {[%clk 0:02:56]}  Nc6 {[%clk 0:02:48]} 6. Nbd2 {[%clk 0:02:55]}  Be7 {[%clk 0:02:47]} 7. Bd3 {[%clk 0:02:55]}  Nh5 {[%clk 0:02:46]} 8. Be5 {[%clk 0:02:54]}  f6 {[%clk 0:02:43]} 9. Bg3 {[%clk 0:02:54]}  g6 {[%clk 0:02:39]} 10. O-O {[%clk 0:02:52]}  O-O {[%clk 0:02:38]} 11. Qe2 {[%clk 0:02:49]}  Nxg3 {[%clk 0:02:13]} 12. hxg3 {[%clk 0:02:50]}  Qb6 {[%clk 0:01:30]} 13. Rab1 {[%clk 0:02:44]}  Bd7 {[%clk 0:01:23]} 14. dxc5 {[%clk 0:02:44]}  Bxc5 {[%clk 0:01:20]} 15. b4 {[%clk 0:02:44]}  Be7 {[%clk 0:01:19]} 16. c4 {[%clk 0:02:43]}  dxc4 {[%clk 0:01:04]} 17. Nxc4 {[%clk 0:02:44]}  Qc7 {[%clk 0:00:51]} 18. a3 {[%clk 0:02:40]}  b5 {[%clk 0:00:45]} 19. Ncd2 {[%clk 0:02:40]}  a6 {[%clk 0:00:42]} 20. Rfc1 {[%clk 0:02:41]}  Rfc8 {[%clk 0:00:41]} 21. Nb3 {[%clk 0:02:40]}  Be8 {[%clk 0:00:29]} 22. Nc5 {[%clk 0:02:38]}  Bf7 {[%clk 0:00:29]} 23. Be4 {[%clk 0:02:35]}  Qb6 {[%clk 0:00:19]} 24. Qb2 {[%clk 0:02:33]}  Ra7 {[%clk 0:00:16]} 25. Rc2 {[%clk 0:02:32]}  Rac7 {[%clk 0:00:16]} 26. Rbc1 {[%clk 0:02:33]}  Nd8 {[%clk 0:00:17]} 27. Nd7 {[%clk 0:02:30]}  Rxc2 {[%clk 0:00:13]} 28. Rxc2 {[%clk 0:02:26]}  Rxc2 {[%clk 0:00:13]} 29. Bxc2 {[%clk 0:02:27]}  Qc7 {[%clk 0:00:12]} 30. Nxf6+ {[%clk 0:02:27]}  Bxf6 {[%clk 0:00:12]} 31. Qxf6 {[%clk 0:02:28]}  Qxc2 {[%clk 0:00:10]} 32. Qxd8+ {[%clk 0:02:28]}  Kg7 {[%clk 0:00:10]} 33. Qd4+ {[%clk 0:02:27]}  Kg8 {[%clk 0:00:10]} 34. Ne5 {[%clk 0:02:25]}  h6 {[%clk 0:00:07]} 35. Qd8+ {[%clk 0:02:22]}  Kg7 {[%clk 0:00:07]} 36. Qe7 {[%clk 0:02:19]}  Qd1+ {[%clk 0:00:07]} 37. Kh2 {[%clk 0:02:17]}  Qh5+ {[%clk 0:00:07]} 38. Qh4 {[%clk 0:02:16]}  Qxe5 {[%clk 0:00:08]} 39. Kg1 {[%clk 0:02:13]}  g5 {[%clk 0:00:08]} 40. Qg4 {[%clk 0:02:12]}  Qa1+ {[%clk 0:00:07]} 41. Kh2 {[%clk 0:02:12]}  Qxa3 {[%clk 0:00:07]} 42. Qd4+ {[%clk 0:02:12]}  Kg6 {[%clk 0:00:06]} 43. Qe4+ {[%clk 0:02:12]}  Kf6 {[%clk 0:00:06]} 44. Qd4+ {[%clk 0:02:12]}  e5 {[%clk 0:00:07]} 45. Qd6+ {[%clk 0:02:12]}  Be6 {[%clk 0:00:06]} 46. Qf8+ {[%clk 0:02:10]}  Kg6 {[%clk 0:00:05]} 47. Qe8+ {[%clk 0:02:09]}  Bf7 {[%clk 0:00:06]} 48. Qc6+ {[%clk 0:02:08]}  Kg7 {[%clk 0:00:05]} 49. Qd6 {[%clk 0:02:09]}  Qc3 {[%clk 0:00:05]} 50. g4 {[%clk 0:02:06]}  e4 {[%clk 0:00:05]} 51. Qe7 {[%clk 0:02:00]}  Qf6 {[%clk 0:00:05]} 52. Qxe4 {[%clk 0:02:00]}  Qxf2 {[%clk 0:00:03]} 53. Qe5+ {[%clk 0:01:56]}  Qf6 {[%clk 0:00:02]} 54. Qc7 {[%clk 0:01:57]}  Kg6 {[%clk 0:00:02]} 55. e4 {[%clk 0:01:57]}  Be6 {[%clk 0:00:02]} 56. e5 {[%clk 0:01:53]}  Qf4+ {[%clk 0:00:03]} 57. Kg1 {[%clk 0:01:53]}  Qe3+ {[%clk 0:00:03]} 58. Kh2 {[%clk 0:01:53]}  Qf4+ {[%clk 0:00:03]} 59. Kg1 {[%clk 0:01:54]}  Qxb4 {[%clk 0:00:03]} 60. Kh2 {[%clk 0:01:51]}  Qf4+ {[%clk 0:00:02]} 61. Kg1 {[%clk 0:01:51]}  Qxg4 {[%clk 0:00:02]} 62. Qd6 {[%clk 0:01:51]}  Qf5 {[%clk 0:00:01]} 63. Qb8 {[%clk 0:01:50]}  Qf4 {[%clk 0:00:01]} 64. Qe8+ {[%clk 0:01:50]}  Bf7 {[%clk 0:00:02]} 65. Qc6+ {[%clk 0:01:50]}  Kh5 {[%clk 0:00:01]} 66. Qd6 {[%clk 0:01:47]}  Qe3+ {[%clk 0:00:01]} 67. Kh2 {[%clk 0:01:47]}  Qe4 {[%clk 0:00:02]} 68. Kg1 {[%clk 0:01:48]}  Bg6 {[%clk 0:00:02]} 69. Qd1+ {[%clk 0:01:48]}  g4 {[%clk 0:00:01]} 70. Qa1 {[%clk 0:01:38]}  Qe3+ {[%clk 0:00:01]} 71. Kh1 {[%clk 0:01:38]}  Be4 {[%clk 0:00:02]} 72. Kh2 {[%clk 0:01:35]}  g3+ {[%clk 0:00:01]} 73. Kh1 {[%clk 0:01:33]}  Bxg2+ {[%clk 0:00:01]} 74. Kxg2 {[%clk 0:01:32]}  Qf2+ {[%clk 0:00:02]} 75. Kh3 {[%clk 0:01:32]}  Qh2# {[%clk 0:00:03]} 0-1


[Site "https://www.chess.com"]

[Event "Titled Tuesday Blitz July 25 Late 2023"]
[White "Svane, Rasmus"]
[Black "Adewumi, Tanitoluwa"]
[WhiteFideId "4657101"]
[BlackFideId "30966396"]
[WhiteElo "2958"]
[BlackElo "2699"]
[Result "1-0"]
[Round "11"]
[TimeControl "180+2"]
[Date "2023.07.25"]
[WhiteClock "0:00:37"]
[BlackClock "0:00:21"]
[Board "16"]

1. d4 {[%clk 0:02:58]}  Nf6 {[%clk 0:02:56]} 2. Nf3 {[%clk 0:02:59]}  e6 {[%clk 0:02:56]} 3. Bf4 {[%clk 0:02:59]}  b6 {[%clk 0:02:56]} 4. e3 {[%clk 0:02:57]}  Bb7 {[%clk 0:02:57]} 5. h3 {[%clk 0:02:56]}  Be7 {[%clk 0:02:57]} 6. Bd3 {[%clk 0:02:56]}  O-O {[%clk 0:02:58]} 7. O-O {[%clk 0:02:56]}  d5 {[%clk 0:02:59]} 8. Nbd2 {[%clk 0:02:49]}  Ne4 {[%clk 0:02:59]} 9. c4 {[%clk 0:02:47]}  Nxd2 {[%clk 0:02:55]} 10. Nxd2 {[%clk 0:02:47]}  dxc4 {[%clk 0:02:56]} 11. Nxc4 {[%clk 0:02:28]}  Nd7 {[%clk 0:02:47]} 12. Qc2 {[%clk 0:02:26]}  h6 {[%clk 0:02:41]} 13. Rfd1 {[%clk 0:02:26]}  Rc8 {[%clk 0:02:33]} 14. Bh7+ {[%clk 0:02:21]}  Kh8 {[%clk 0:02:32]} 15. Be4 {[%clk 0:02:22]}  Bxe4 {[%clk 0:02:22]} 16. Qxe4 {[%clk 0:02:23]}  c5 {[%clk 0:01:57]} 17. Nd6 {[%clk 0:01:33]}  Nf6 {[%clk 0:01:50]} 18. Qe5 {[%clk 0:01:28]}  Rc6 {[%clk 0:01:13]} 19. dxc5 {[%clk 0:01:25]}  Rxc5 {[%clk 0:01:14]} 20. Nxf7+ {[%clk 0:01:20]}  Rxf7 {[%clk 0:01:05]} 21. Rxd8+ {[%clk 0:01:19]}  Bxd8 {[%clk 0:01:06]} 22. Qxe6 {[%clk 0:01:15]}  Rd7 {[%clk 0:01:06]} 23. Qb3 {[%clk 0:01:04]}  g5 {[%clk 0:01:01]} 24. Bg3 {[%clk 0:01:00]}  Kg7 {[%clk 0:01:00]} 25. Rd1 {[%clk 0:01:00]}  Rcd5 {[%clk 0:00:52]} 26. Rxd5 {[%clk 0:00:59]}  Rxd5 {[%clk 0:00:53]} 27. e4 {[%clk 0:00:53]}  Rd4 {[%clk 0:00:42]} 28. Be5 {[%clk 0:00:51]}  Rxe4 {[%clk 0:00:41]} 29. Qd5 {[%clk 0:00:37]}  Re1+ {[%clk 0:00:34]} 30. Kh2 {[%clk 0:00:37]}  Bc7 {[%clk 0:00:21]} 31. Qb7 {[%clk 0:00:37]} 1-0


[Site "https://www.chess.com"]